Cogmind - Beta 15 @@@ ROGUE MODE // 2025.07.11 @ 07:20:53 Player: puppuppit Result: Destroyed by 8R-AWN with 8R-AWN's Boregun Performance ------------- Evolutions (0) 0 Regions Visited (3) 600 Robots Destroyed (56) 280 Value Destroyed (660) 660 Prototype IDs (3) 60 Alien Tech Used (0) 0 Bonus (-81) -81 TOTAL SCORE: 1519 Bonus ------- Friendly Fire -81 Cogmind --------- Core Integrity 0/250 Matter 170/300 Energy 100/100 System Corruption 0% Temperature Cool (0) Movement Treading (145) Location -10/Exiles Parts ------- > --- POWER (1) -------- (None) > --- PROPULSION (2) --- Advanced Treads > --- UTILITY (2) ------ Large Storage Unit > --- WEAPON (2) ------- (None) > --- INVENTORY (15) --- Fission Core Fission Core Light Fission Core Light Treads Light Treads High-capacity Matter Pod (200) High-capacity Matter Pod (200) Hacking Suite Hacking Suite Thief Drone Bay (0/3) Assault Rifle Light Assault Rifle Light Assault Rifle Light Assault Rifle Light Cannon Peak State ------------ > --- POWER ------------ Light Nuclear Core > --- PROPULSION ------- Light Treads Advanced Treads > --- UTILITY ---------- Large Storage Unit Thief Drone Bay > --- WEAPON ----------- Assault Rifle Assault Rifle > --- INVENTORY -------- Fission Core Fission Core Light Fission Core Light Treads Light Treads High-capacity Matter Pod High-capacity Matter Pod Light Armor Plating Hacking Suite Hacking Suite Light Assault Rifle Light Assault Rifle Light Assault Rifle Light Cannon Grenade Launcher [Rating: 20] Favorites ----------- Power Light Nuclear Core Engine Ion Engine Power Core Light Nuclear Core Propulsion Light Treads Treads Light Treads Utility Large Storage Unit Device Thief Drone Bay Storage Large Storage Unit Protection Light Armor Plating Weapon Assault Rifle Ballistic Gun Assault Rifle Ballistic Cannon Light Cannon Launcher Grenade Launcher Build | -11 -10 -10 -10 ------- Run | Yrd Mat Min Exi Slots Evolved . | . . . . Power . | . . . . Propulsion . | . . . . Utility . | . . . . Weapon . | . . . . Parts Attached 17 | 7 6 3 1 Power 2 | 1 1 . . Engine 1 | 1 . . . Core 1 | . 1 . . Reactor . | . . . . Propulsion 4 | 2 1 1 . Treads 4 | 2 1 1 . Leg . | . . . . Wheel . | . . . . Hover . | . . . . Flight . | . . . . Utility 6 | 2 2 1 1 Device 2 | 1 . 1 . Storage 2 | 1 1 . . Processor . | . . . . Hackware . | . . . . Protection 2 | . 1 . 1 Artifact . | . . . . Weapon 5 | 2 2 1 . Energy Gun . | . . . . Energy Cannon . | . . . . Ballistic Gun 3 | 2 1 . . Ballistic Cannon 1 | . 1 . . Launcher 1 | . . 1 . Special Weapon . | . . . . Impact Weapon . | . . . . Slashing Weapon . | . . . . Piercing Weapon . | . . . . Special Melee Weapon . | . . . . Unidentified Prototypes 1 | . . 1 . Parts Lost 4 | . . . 4 Power 1 | . . . 1 Propulsion 1 | . . . 1 Utility 1 | . . . 1 Weapon 1 | . . . 1 Highest Loss Streak 3 | . . . 3 To Critical Strikes 1 | . . . 1 Average Backups 12 | 1 10 15 14 Power . | . . . 2 Propulsion 1 | . . 1 2 Utility 6 | . 5 8 5 Weapon 4 | . 4 5 5 Tool/Special . | . . . . Unused Backups 16 | . 2 1 13 Power 3 | . . . 3 Propulsion . | . . . . Utility 11 | . 2 1 8 Weapon 2 | . . . 2 Tool/Special . | . . . . Average Slot Usage (%) 97 | . 99 100 90 Engine 5 | . 13 . . Core 8 | . . 14 13 Treads 27 | . 27 28 28 Device 2 | . 2 2 1 Storage 14 | . 14 14 14 Protection 11 | . 11 11 12 Ballistic Gun 26 | . 27 27 20 Peak Build Rating 20 | 9 11 19 20 Average Rating 10 | 6 8 12 13 On Entrance 9 | . 9 11 19 Naked Turns . | . . . . Heaviest Build 34 | 14 33 33 34 Greatest Support 42 | 40 40 42 42 Greatest Overweight (x) . | . . . . Average Overweight (x) . | . . . . Largest Inventory Capacity 15 | 8 15 15 15 Average Capacity 14 | 7 14 15 15 Most Carried 15 | 3 15 15 15 Average Carried 12 | 1 10 14 14 Final Capacity 15 | 8 15 15 15 Final Carried 15 | 3 15 15 15 Class Distribution -------------------- 77% | Mutant 22% | Commander-Mutant Dominant Class ---------------- Mutant | -10/Materials Mutant | -10/Mines Commander-Mutant | -10/Exiles Resources | -11 -10 -10 -10 ----------- Run | Yrd Mat Min Exi Matter Collected 1738 | 444 896 360 38 Remotely . | . . . . Salvage Created 1805 | 219 783 754 49 Parts 132 | 25 49 49 9 Haulers Intercepted 2 | . 2 . . Recyclers Shooed 2 | . 1 1 . Parts Field Recycled . | . . . . Retrieved Matter . | . . . . Parts Self-Destructed . | . . . . Prevented . | . . . . Kills | -11 -10 -10 -10 ------- Run | Yrd Mat Min Exi Combat Hostiles Destroyed 17 | . 9 4 4 Guns 13 | . 9 3 1 AOE 4 | . . 1 3 Classes Destroyed 10 | 3 6 . 1 Worker 12 | 2 5 5 . Builder 7 | . 1 6 . Tunneler 10 | 5 1 4 . Hauler 2 | . 2 . . Recycler 6 | 1 2 3 . Operator 2 | . 2 . . Watcher 3 | . 3 . . Swarmer 3 | . 3 . . Grunt 10 | . 6 4 . Assembled 4 | . . . 4 Best Kill Streak 6 | 6 5 3 5 Combat Bots Only 4 | . 4 2 4 Max Kills in Single Turn 2 | 1 2 1 1 Gunslinging 1 | . 1 . . Exploded 1 | . . 1 1 Melee . | . . . . Uniques/NPCs Destroyed 2 | . . . 2 EX-DEC (-10/Exiles) EX-BIN (-10/Exiles) Combat | -11 -10 -10 -10 -------- Run | Yrd Mat Min Exi Hostile Shots Fired 146 | . 55 9 82 Missed 53 | . 17 3 33 Hits 93 | . 38 6 49 Melee 2 | . . . 2 Projectile 91 | . 38 6 47 Critical Strikes 5 | . . . 5 Damage Taken 1277 | . 395 106 776 Core 269 | . 60 20 189 Absorbed by Shields . | . . . . Regen/Repaired (Parts) 238 | . 238 . . Core Remaining (%) 100 | 100 . . . Volleys Fired 145 | 20 72 42 11 Largest 2 | 2 2 2 2 Hottest 50 | 40 40 50 50 Shots Fired 285 | 40 140 84 21 Gun 274 | 40 136 82 16 Cannon 4 | . 4 . . Launcher 7 | . . 2 5 Special . | . . . . Kinetic 278 | 40 140 82 16 Thermal . | . . . . Explosive 7 | . . 2 5 Electromagnetic . | . . . . Robot Hit Streak 9 | 6 7 9 9 Robot Miss Streak 4 | 2 4 3 2 Penetration Max . | . . . . Secondary Targets 3 | . 3 . . Max Gunslinging Chain 1 | . 1 . . Shots Hit Robots 164 | 23 79 49 13 Core Hits 86 | 13 36 27 10 Critical Kills 1 | . 1 . . Critical Parts Destroyed . | . . . . Critical Strikes 1 | . 1 . . Destroy 1 | . 1 . . Melee Attacks . | . . . . Impact . | . . . . Slashing . | . . . . Piercing . | . . . . Sneak Attacks . | . . . . Combat Hostiles . | . . . . Follow-up Attacks . | . . . . Damage Inflicted 2528 | 240 1113 778 397 Guns 2097 | 240 1108 640 109 Cannons . | . . . . Explosions 426 | . . 138 288 Melee . | . . . . Ramming 5 | . 5 . . Kinetic 2097 | 240 1108 640 109 Thermal . | . . . . Explosive 426 | . . 138 288 Electromagnetic . | . . . . Impact . | . . . . Slashing . | . . . . Piercing . | . . . . Highest Corruption . | . . . . Average Corruption . | . . . . Corruption Purged . | . . . . Corruption Blocked . | . . . . Overload Shots . | . . . . Overflow Damage 12 | . . 12 . Projectiles . | . . . . Explosions 12 | . . 12 . Melee . | . . . . Knockbacks . | . . . . Impact . | . . . . Kinetic . | . . . . Secondary . | . . . . Self-Inflicted Damage 20 | . . 20 . Shots 2 | . . 2 . Rammed 1 | . 1 . . Targets Rammed 1 | . 1 . . Kicked . | . . . . Crushed . | . . . . Highest Temperature 24 | . 17 24 . Average Temperature 10 | . 7 14 . Received Heat Transfer 177 | . 126 51 . Siege Activations . | . . . . Martial Activations . | . . . . Shielding Activations . | . . . . Robots Disrupted . | . . . . Combat Hostiles . | . . . . Robots Corrupted . | . . . . Combat Hostiles . | . . . . Parts Fried . | . . . . Impact Corruptions . | . . . . Robots Melted . | . . . . Combat Hostiles . | . . . . Parts Melted . | . . . . Heat Transferred . | . . . . Parts Sabotaged . | . . . . Parts Stolen . | . . . . Parts Stripped . | . . . . Power Chain Reactions . | . . . . Alert | -11 -10 -10 -10 ------- Run | Yrd Mat Min Exi Maximum Alert Level . | . . . . Low Security (%) 100 | 100 100 100 . Level 1 . | . . . . Level 2 . | . . . . Level 3 . | . . . . Level 4 . | . . . . Level 5 . | . . . . High Security . | . . . . Max Security . | . . . . Peak Influence 101 | 15 101 67 . Initial . | . . . . Average 12 | 3 18 8 . Influence Increases 647 | 40 340 267 . Destroy 0b10 Robot/C 280 | . 180 100 . Destroy 0b10 Robot/NC 210 | 40 80 90 . Destroy Leader 70 | . 50 20 . Successful Hack 29 | . 29 . . Destroy Structure 13 | . 1 12 . Lose Combat Pursuer 45 | . . 45 . Influence Decreases 647 | 40 340 267 . Time Decay 647 | 40 340 267 . Squads Dispatched 2 | . 2 . . Investigation . | . . . . Extermination . | . . . . Reinforcement 2 | . 2 . . Assault . | . . . . Garrison . | . . . . Intercept . | . . . . Searches Triggered . | . . . . Construction Impeded . | . . . . Haulers Reinforced . | . . . . Active Scanning Responses . | . . . . Cargo Convoy Interrupts . | . . . . Stealth | -11 -10 -10 -10 --------- Run | Yrd Mat Min Exi Distress Signals 1 | . 1 . . Communications Jammed . | . . . . Distress Signals . | . . . . Times Spotted 34 | . 19 5 10 Peak Tracking Total 11 | . 4 2 11 Tactical Retreats 3 | . . 2 1 Traps | -11 -10 -10 -10 ------- Run | Yrd Mat Min Exi Traps Triggered . | . . . . Indirectly . | . . . . Trap Hack Attempts . | . . . . Triggered . | . . . . Disarmed . | . . . . Reprogrammed 4 | . 4 . . Reused . | . . . . Traps Extracted . | . . . . Installed . | . . . . Triggered . | . . . . Machines | -11 -10 -10 -10 ---------- Run | Yrd Mat Min Exi Machines Disabled 2 | . . . 2 Max in Single Turn 1 | . . . 1 Machines Repaired . | . . . . Machines Dismantled . | . . . . Machines Sabotaged . | . . . . Overloaded Fab Kills . | . . . . Hacking | -11 -10 -10 -10 --------- Run | Yrd Mat Min Exi Machines Accessed 12 | . 9 2 1 Terminals 6 | . 6 . . Fabricators . | . . . . Repair Stations 1 | . 1 . . Recycling Units 2 | . 2 . . Scanalyzers . | . . . . Garrison Access . | . . . . Total Hacks 51 | . 48 2 1 Successful 33 | . 30 2 1 Failed 17 | . 17 . . Catastrophic . | . . . . Database Lockouts 1 | . 1 . . Manual 37 | . 37 . . Terminals 33 | . 33 . . Fabricators . | . . . . Repair Stations 9 | . 9 . . Recycling Units 6 | . 6 . . Scanalyzers . | . . . . Garrison Access . | . . . . Terminal Hacks 10 | . 7 2 1 Record 1 | . . . 1 Robot Analysis 2 | . 2 . . Prototype ID Bank 1 | . 1 . . Open Door 2 | . . 2 . Terminal Index 1 | . 1 . . Unreport Threat 1 | . 1 . . Reprogram Traps 1 | . 1 . . Recall Reinforcements 1 | . 1 . . Fabricator Hacks . | . . . . Repair Station Hacks 8 | . 8 . . Scan Component 4 | . 4 . . Repair 4 | . 4 . . Recycling Unit Hacks . | . . . . Scanalyzer . | . . . . Garrison Access Hacks . | . . . . Unauthorized Hacks 15 | . 15 . . Terminals 10 | . 10 . . Assimilate 1 | . 1 . . Botnet 4 | . 4 . . Skim 5 | . 5 . . Fabricators . | . . . . Repair Stations . | . . . . Recycling Units 5 | . 5 . . Reject 2 | . 2 . . Recyclers 2 | . 2 . . Mask 1 | . 1 . . Scanalyzers . | . . . . Garrison Access . | . . . . Data Cores Recovered . | . . . . Used . | . . . . Hacking Detections 8 | . 8 . . Full Trace Events . | . . . . Feedback Events . | . . . . Feedback Blocked . | . . . . Robot Schematics Acquired . | . . . . Robots Built . | . . . . Authchips . | . . . . Time . | . . . . Total Robot Build Rating . | . . . . Part Schematics Acquired . | . . . . Parts Built . | . . . . Authchips . | . . . . Time . | . . . . Total Part Build Rating . | . . . . Parts Repaired 4 | . 4 . . Time 104 | . 104 . . Parts Recycled . | . . . . Recycled Matter . | . . . . Retrieved Matter . | . . . . Retrieved Components . | . . . . Parts Scanalyzed . | . . . . Part Schematics Acquired . | . . . . Parts Damaged . | . . . . Bothacking | -11 -10 -10 -10 ------------ Run | Yrd Mat Min Exi Used RIF Installer . | . . . . Robots Hacked . | . . . . Non-combat . | . . . . Combat . | . . . . Robot Hacks Applied . | . . . . Relay Couplers Released . | . . . . Fabnet Peak Effective % . | . . . . Robots Rewired . | . . . . Allies Hacked . | . . . . Hacks Repelled . | . . . . Allies | -11 -10 -10 -10 -------- Run | Yrd Mat Min Exi Total Allies 6 | . 1 5 . Largest Group 6 | . 1 6 5 Highest-Rated Group 112 | . 10 112 81 Highest-Rated Ally 31 | . 10 31 31 Total Orders 9 | . 2 6 1 STAY 2 | . 1 . 1 FOLLOW 1 | . 1 . . EXPLORE 5 | . . 5 . RETURN 1 | . . 1 . Ally Attacks 45 | . . 18 27 Total Damage 595 | . . 102 493 Kills 2 | . . 1 1 Allies Corrupted . | . . . . Allies Melted . | . . . . Turrets Deployed 1 | . . . 1 Intel | -11 -10 -10 -10 ------- Run | Yrd Mat Min Exi Active Infowar (turns) 286 | 46 240 . . Terrain 286 | 46 240 . . Robot Analysis Total 2 | . 2 . . Derelict Logs Recovered 2 | . . 2 . Drone Launches 13 | . . 9 4 Drone Recoveries 10 | . . 9 1 Exploration | -11 -10 -10 -10 ------------- Run | Yrd Mat Min Exi Turns Passed 4035 | 174 1518 1560 783 Spaces Moved 2173 | 70 731 893 479 Core 6 | 6 . . . Treads 2167 | 64 731 893 479 Legs . | . . . . Wheels . | . . . . Hover . | . . . . Flight . | . . . . Fastest Speed 50 | 50 160 152 145 Average Speed 156 | 150 160 157 151 Slowest Speed 160 | 160 160 160 152 Overloaded Moves . | . . . . Propulsion Burnouts . | . . . . Robots Hopped . | . . . . Potential Cave-ins . | . . . . Cave-ins Triggered . | . . . . Exploration Rate (%) 63 | 5 94 99 55 Regions Visited 3 Branch Regions 2 Pre-discovered Areas 3 | . 1 1 1 Known Exits Taken 1 | . 1 . . Unknown Exits Taken 2 | 1 . 1 . Scrap Searched 3 | . . 3 . Spaces Dug . | . . . . Terrain Destroyed 15 | . . 15 . Melee . | . . . . Projectile . | . . . . AOE 15 | . . 15 . Terrain Rammed . | . . . . Walls Destroyed . | . . . . Machines Disabled . | . . . . Actions | -11 -10 -10 -10 --------- Run | Yrd Mat Min Exi Total 2511 | 99 936 960 516 Wait 126 | . 105 16 5 Move 2169 | 69 730 891 479 Hop . | . . . . Pick Up 23 | 3 12 2 6 Fast Attach 12 | 7 4 . 1 Attach 1 | . . . 1 Detach 1 | . 1 . . Swap 18 | . 7 6 5 Drop 15 | . 4 3 8 Fire 145 | 20 72 42 11 Melee . | . . . . Ram . | . . . . Kick . | . . . . Crush 1 | . 1 . . Escape Stasis . | . . . . Rewire . | . . . . Trap . | . . . . Miscellaneous . | . . . . Route ------- -11/Scrapyard -10/Materials (discovered 5 exits: *Mat x3 / *Min / *Sub) -10/Mines (discovered 4 exits: *Mat x2 / *Exi / *Sub) -10/Exiles (discovered 1 exit: [*Min]) History --------- Turn | Location | Event 48 | -11/Scrapyard | Discovered new exit (range 16) 175 | -11/Scrapyard | Entered Materials 307 | -10/Materials | Build established: Mutant 395 | -10/Materials | Central database locked down 411 | -10/Materials | Discovered new exit (range 14) 722 | -10/Materials | Discovered new exit (range 15) 1013 | -10/Materials | Identified exit to Mines 1013 | -10/Materials | Identified exit to Materials 1013 | -10/Materials | Identified exit to Subcaves 1029 | -10/Materials | Discovered exit to Materials (range 12) 1044 | -10/Materials | Learned 4 Subcaves zone layouts 1066 | -10/Materials | Learned Storage trap positions 1077 | -10/Materials | Learned 4 Subcaves zone layouts 1095 | -10/Materials | Learned location of Storage (-8) 1141 | -10/Materials | Repaired Lgt. Treads 1168 | -10/Materials | Repaired Lgt. Treads 1196 | -10/Materials | Repaired Assault Rifle 1223 | -10/Materials | Repaired Assault Rifle 1693 | -10/Materials | Entered Mines 1693 | -10/Mines | Accompanied by 1 ally 1747 | -10/Mines | Discovered exit to Materials (range 13) 1841 | -10/Mines | Learned location of Zion (-7) 2054 | -10/Mines | Discovered exit to Materials (range 5) 2081 | -10/Mines | Found the Drone Emporium 2089 | -10/Mines | Found Prototype Device 2089 | -10/Mines | Identified Thief Drone Bay 2139 | -10/Mines | Learned Materials garrison access intel 2447 | -10/Mines | Escorted by a lone wolf Derelict 2458 | -10/Mines | Discovered exit to Subcaves (range 6) 2827 | -10/Mines | Met a Derelict who couldn't figure out how to use a Trap Extractor 2882 | -10/Mines | Received a Mining Laser from a helpful Derelict 3028 | -10/Mines | Assisted by bots powering up and referring to "LRC-V3" 3241 | -10/Mines | Deemed a non-threat by the Exiles lab entrance 3241 | -10/Mines | Discovered new exit (range 5) 3253 | -10/Mines | Entered Exiles 3253 | -10/Exiles | Accompanied by 5 allies 3298 | -10/Exiles | Met 8R-AWN 3319 | -10/Exiles | Met EX-HEX 3321 | -10/Exiles | Build established: Commander-Mutant 3698 | -10/Exiles | Met EX-DEC 3847 | -10/Exiles | Discovered new exit (range 10) 3938 | -10/Exiles | Attacked by the Exiles 3944 | -10/Exiles | Allies destroyed EX-DEC 3949 | -10/Exiles | DAS Turret deployed 3957 | -10/Exiles | Destroyed EX-BIN 3999 | -10/Exiles | Lost 7 allies 4002 | -10/Exiles | Core integrity fell below 50% 4026 | -10/Exiles | Core integrity fell below 20% 4030 | -10/Exiles | Lost 3 parts (1p1u1w) 4036 | -10/Exiles | Destroyed by 8R-AWN with 8R-AWN's Boregun Last Messages --------------- 03996_ Penetrated by HV Slug. 03996_ Critical hit (Destroy). 03996_ Assault Rifle destroyed. 03996_ HV Slug penetrates Wall. 03999_ Penetrated by HV Slug. 03999_ Critical hit (Destroy). 03999_ Lgt. Armor Plating destroyed. 03999_ HV Slug penetrates Wall. 04000_ Dropped Grenade Launcher. 04001_ Penetrated by HV Slug. 04003_ HV Slug penetrates Machine. 04003_ Machine disabled. 04003_ HV Slug penetrates Wall. 04019_ Machine disabled. 04023_ HV Slug penetrates Wall. 04023_ HV Slug penetrates Machine. 04023_ Machine disabled. 04023_ Penetrated by HV Slug. 04031_ Lgt. Treads destroyed. 04036_ Penetrated by HV Slug. Map ----- +----------------------------------------------------+ | ??????????????????????????????????????????????? | | ??????????????????????????????????????????????? | | ??????????????????????????????????????????????? | | ??????????????????????????????????????????????? | | ??????????????????????????????????????????????? | | ??????????????????????????????????????????????? | | ??????????????????????????????????????????????? | | ??????????????????????????????????????????????? | | ??????????????????????????????????????????????? | | ??????????????????????????????????????????????? | | ??????????????????????????????????????????????? | | ??????????????????????????????????????????????? | | ????????????????#####?????????????????????????? | | ???????????????## ##????????????????????????? | | ???????????????# #????????????????????????? | | ???????????????# < #????????????????????????? | | ???????????????# ###??????????????????????? | | ???????????????# #??????????????????????? | | ???????????????# o ##??????????????????????? | | ???????????????## #???????????????????????? | | ????????????????# ##??????????????????????? | | ????????????????## #????????????#######???? | | ?????????????????# #######??????#!!! "#???? | | ?????????????????# #""##?????# "#???? | | ?????????????????## #?????# "#???? | | ??????????????????##" @ ##???## ""#???? | | ??????????????????#"" #####" ""#???? | | ??????????????????#### ##" ""#???? | | ?????????????????????## #" #?????? | | ??????????????????????#"## #?????? | | ??????????????????????####### ##????? | | ????????????????????????????### "#????? | | ??????????????????????????#### ###??? | | ??????????????????????????""""" ##?? | | ???????????????????????! "###" ### | | ??????????????????????#! "#?##" | | ??????????????????????#! ##??#" | | ??????????????????????# !""""""###???#"# | | ??????????????????????#########??????#### | | ????????????????????????????????????????##" | | ?????????????????????????????????????????####] | | ????????????????????????????????????????????## | | ?????????????????????????????????????????????## | | ??????????????????????????????????????????????# | | ??????????????????????????????????????????????? | | ??????????????????????????????????????????????# | | ??????????????????????????????????????????????# | | ?????????????????????????????????????????????## | | ?????????????????????????????????????????????#" | | ?????????????????????????????????????????????#" | +----------------------------------------------------+ Best States ------------- Heat Dissipation 25 Energy Generation 14 Energy Capacity 250 Matter Stores 300 Matter Capacity 300 Sight Range 16 Terrain Scan Range 16 Terrain Scan Density 10 Armor Coverage 150 Evasion (%) 40 Recoil Reduction 2 Item Schematics ----------------- None Robot Schematics ------------------ None Fabricated ------------ Nothing Repaired ---------- Lgt. Treads | 35% | -10/Materials Lgt. Treads | 50% | -10/Materials Assault Rifle | 54% | -10/Materials Assault Rifle | 67% | -10/Materials Alien Tech Used ----------------- None Achievements -------------- None Challenges ------------ None Game ------ Seed BladeBombSpoofer Manual? 0 Play Time 00:19:47 Cumulative 394.2 hours Start 2025.07.11 @ 07:02:06 End 2025.07.11 @ 07:20:53 Sessions 1 Manual Loads 0 Difficulty Rogue Special Mode None Game No. 228 Rogue 228 Adventurer 0 Explorer 0 Win Type - Total 4 Types 2/0/1/1/0/0/0/0/0/0 Lore% 85 Gallery% 73 Achievement% 67 Wizard Run 0 Options --------- Layout 2 ASCII 0 Keyboard 1 Movement Vi Keybinds 0 Fullscreen 1 Font 16/Tamsyn Map View 55x47 Zoom Use 0% Tactical HUD 1 Map Filters NONE Filters NONE Steam 0 RUN: 7a9101a4-fefc-46e1-ab22-f0d0ddff3b92